bitfinex-derivatives/quotes_SOLF0:USTF0_20250211
["timestamp","ask_amount","ask_price","bid_price","bid_amount"]
[1739268500584,0.03481221,202.68,202.64,0.03135116]
[1739268501187,13.14134795,202.81,202.66,13.14134795]
[1739268501482,13.14134795,202.81,202.69,13.14134795]
[1739268501682,4.9314,202.76,202.69,18.07394795]
[1739268502281,13.14134795,202.78,202.66,13.14134795]
[1739268502487,0.03726626,202.75,202.66,13.14134795]
[1739268502688,0.03726626,202.75,202.7,0.03153848]
[1739268504187,4.9319,202.73,202.7,0.03153848]
[1739268504695,4.9316,202.74,202.7,0.03153848]
[1739268504994,0.03726626,202.75,202.7,0.03153848]
[1739268505794,0.03726626,202.75,202.7,4.96413848]
[1739268506090,0.03726626,202.75,202.7,0.03153848]
[1739268506991,0.03726626,202.75,202.73,4.9318]
[1739268507195,3.056,202.87,202.7,0.03153848]
[1739268507196,16.19734795,202.87,202.72,13.14134795]
[1739268507389,16.19734795,202.87,202.73,3.0785]
[1739268507990,4.9295,202.83,202.76,4.9309]
[1739268508191,16.19734795,202.87,202.73,3.0785]
[1739268508392,0.03328276,202.82,202.78,4.9306]
[1739268508791,0.03328276,202.82,202.77,0.03143125]
[1739268508988,4.96298276,202.82,202.77,0.03143125]
[1739268509189,0.03328276,202.82,202.77,0.03143125]
[1739268509697,4.9305,202.79,202.77,0.03143125]
[1739268510294,4.9307,202.78,202.77,0.03143125]
[1739268510600,0.03328276,202.82,202.77,0.03143125]
[1739268510899,4.9304,202.8,202.77,0.03143125]
[1739268512298,4.96308276,202.82,202.77,0.03143125]
[1739268512497,0.03328276,202.82,202.77,0.03143125]
[1739268512897,0.03328276,202.82,202.78,4.9307]
[1739268513501,0.03328276,202.82,202.8,4.9301]
[1739268514803,0.03328276,202.82,202.79,4.9304]
[1739268515103,0.03328276,202.82,202.77,0.03143125]
[1739268515304,4.9304,202.8,202.77,0.03143125]
[1739268517005,0.03328276,202.82,202.77,0.03143125]
[1739268517195,0.03328276,202.82,202.77,4.96233125]
[1739268517595,0.03328276,202.82,202.77,0.03143125]
[1739268517797,0.03328276,202.82,202.78,4.9305]
[1739268518307,0.03328276,202.82,202.77,0.03143125]
[1739268519109,4.9302,202.8,202.77,0.03143125]
[1739268519297,0.03328276,202.82,202.77,0.03143125]
[1739268520806,4.9307,202.78,202.77,0.03143125]
[1739268521398,0.03328276,202.82,202.69,1.5351]
[1739268521399,4.9316,202.75,202.69,4.9326]
[1739268521607,21.01140687,202.79,202.66,1.5965]
[1739268522308,4.9318,202.74,202.67,4.9333]
[1739268522510,21.01140687,202.79,202.67,4.9333]
[1739268522711,0.03351866,202.73,202.68,0.03111714]
[1739268523707,0.03351866,202.73,202.69,4.9328]
[1739268523906,0.03351866,202.73,202.68,0.03111714]
[1739268524209,0.03351866,202.73,202.69,4.9328]
[1739268524410,0.03351866,202.73,202.68,0.03111714]
[1739268524713,0.03351866,202.73,202.69,4.9328]
[1739268525007,0.03351866,202.73,202.68,0.03111714]
[1739268525512,0.03351866,202.73,202.69,4.9328]
[1739268525812,0.03351866,202.73,202.68,0.03111714]
[1739268526611,4.96541866,202.73,202.68,0.03111714]
[1739268527911,0.03351866,202.73,202.68,0.03111714]
[1739268528312,0.03351866,202.73,202.68,4.96421714]
[1739268529806,4.96541866,202.73,202.68,4.96421714]
[1739268530407,4.96541866,202.73,202.68,0.03111714]
[1739268530709,0.03351866,202.73,202.68,0.03111714]
[1739268530917,4.9326,202.71,202.68,0.03111714]
[1739268532515,0.03351866,202.73,202.68,0.03111714]
[1739268532715,4.96541866,202.73,202.68,0.03111714]
[1739268534015,0.03351866,202.73,202.68,0.03111714]
[1739268536914,4.9324,202.71,202.68,0.03111714]
[1739268537110,0.03351866,202.73,202.68,0.03111714]
[1739268537314,4.96561866,202.73,202.68,4.96421714]
[1739268537612,0.03351866,202.73,202.68,0.03111714]
[1739268538815,0.03351866,202.73,202.69,4.9327]
[1739268539114,0.03351866,202.73,202.68,0.03111714]
[1739268539508,0.03351866,202.73,202.68,4.96411714]
[1739268540618,0.03351866,202.73,202.69,4.9327]
[1739268541020,0.03351866,202.73,202.68,0.03111714]
[1739268541320,0.03351866,202.73,202.72,4.9321]
[1739268542817,0.03351866,202.73,202.7,4.9326]
[1739268543017,0.03351866,202.73,202.69,1.5169]
[1739268543419,0.03351866,202.73,202.68,1.53091714]
[1739268545921,0.03351866,202.73,202.68,0.03111714]
[1739268547422,0.03351866,202.73,202.7,4.9324]
[1739268547723,0.03351866,202.73,202.71,13.14221041]
[1739268548024,13.14221041,202.84,202.71,13.14221041]
[1739268548219,13.14221041,202.84,202.72,1.5762]
[1739268548424,13.14221041,202.87,202.74,13.14221041]
[1739268548625,4.929,202.85,202.78,4.9306]
[1739268549126,4.9288,202.86,202.79,4.96511719]
[1739268549426,0.03117646,202.84,202.79,4.96511719]
[1739268549725,0.03117646,202.84,202.79,0.03471719]
[1739268550525,0.03117646,202.84,202.79,4.96491719]
[1739268551225,0.03117646,202.84,202.79,0.03471719]
[1739268551426,4.9295,202.83,202.79,0.03471719]
[1739268551825,0.03117646,202.84,202.79,0.03471719]
[1739268552527,4.96057646,202.84,202.79,0.03471719]
[1739268553130,0.03117646,202.84,202.79,0.03471719]
[1739268553320,4.9302,202.8,202.79,0.03471719]
[1739268553722,13.14221041,202.81,202.7,27.2085487]
[1739268554126,4.9314,202.76,202.7,27.2085487]
[1739268555026,0.03209121,202.75,202.71,0.03343697]
[1739268555219,4.96349121,202.75,202.71,0.03343697]
[1739268555424,0.03209121,202.75,202.71,0.03343697]
[1739268557829,4.9317,202.74,202.71,0.03343697]
[1739268558028,0.03209121,202.75,202.71,0.03343697]
[1739268559230,0.03209121,202.75,202.73,4.9318]
[1739268560632,0.03209121,202.75,202.71,0.03343697]
[1739268561022,4.96369121,202.75,202.71,0.03343697]
[1739268561923,4.9317,202.74,202.71,0.03343697]
[1739268563741,4.9319,202.73,202.71,0.03343697]
[1739268563941,0.03209121,202.75,202.71,0.03343697]
[1739268565742,0.03209121,202.75,202.73,4.9318]
[1739268565947,0.03209121,202.75,202.71,0.03343697]
[1739268566345,0.03209121,202.75,202.71,4.96583697]
[1739268567846,0.03209121,202.75,202.71,4.96573697]
[1739268568042,0.03209121,202.75,202.71,0.03343697]
[1739268569948,0.03209121,202.75,202.71,4.96573697]
[1739268570349,4.96349121,202.75,202.71,0.03343697]
[1739268570650,0.03209121,202.75,202.71,0.03343697]
[1739268571751,4.96369121,202.75,202.71,0.03343697]
[1739268573053,4.9318,202.74,202.71,0.03343697]
[1739268573451,0.03209121,202.75,202.71,0.03343697]
[1739268574451,0.03209121,202.75,202.71,4.96573697]
[1739268575248,0.03209121,202.75,202.71,0.03343697]
[1739268575948,4.96369121,202.75,202.71,0.03343697]
[1739268576149,0.03209121,202.75,202.71,0.03343697]
[1739268577649,4.9319,202.74,202.71,0.03343697]
[1739268577854,13.17430162,202.75,202.71,0.03343697]
[1739268578154,4.9321,202.72,202.71,0.03343697]
[1739268578656,18.07431041,202.72,202.71,0.03343697]
[1739268580045,4.9319,202.74,202.71,0.03343697]
[1739268580452,0.03209121,202.75,202.71,0.03343697]
[1739268580453,0.03209121,202.75,202.71,4.96573697]
[1739268581454,4.96349121,202.75,202.71,4.96573697]
[1739268584147,0.03209121,202.75,202.71,0.03343697]
[1739268584347,4.9317,202.74,202.71,0.03343697]
[1739268586957,4.96359121,202.75,202.71,4.96573697]
[1739268587159,0.03209121,202.75,202.71,0.03343697]
[1739268587360,0.03209121,202.75,202.72,4.932]
[1739268587962,0.03209121,202.75,202.73,4.9319]
[1739268588254,0.03209121,202.75,202.71,0.03343697]
[1739268588455,0.03209121,202.75,202.73,4.9319]
[1739268588864,0.03209121,202.75,202.71,0.03343697]
[1739268589263,0.03209121,202.75,202.74,4.9316]
[1739268589561,0.03209121,202.75,202.71,0.03343697]
[1739268589763,0.03209121,202.75,202.73,4.9319]
[1739268590161,0.03209121,202.75,202.72,4.9319]
[1739268591064,0.03209121,202.75,202.73,4.9317]
[1739268591565,0.03209121,202.75,202.71,0.03343697]
[1739268591758,0.03209121,202.75,202.74,4.9316]
[1739268592961,0.03209121,202.75,202.73,4.9318]
[1739268593261,0.03209121,202.75,202.71,0.03343697]
[1739268594865,0.03209121,202.75,202.74,4.9316]
[1739268595662,0.03209121,202.75,202.74,13.33445365]
[1739268600272,8.40285365,202.84,202.74,8.40285365]
[1739268600471,8.40285365,202.84,202.77,8.40285365]
[1739268600671,4.9297,202.82,202.77,8.40285365]
[1739268601471,0.03794129,202.82,202.77,8.43647654]
[1739268601868,0.03794129,202.82,202.79,8.40285365]
[1739268602071,0.03794129,202.82,202.79,13.33305365]
[1739268602271,0.03794129,202.82,202.81,8.40285365]
[1739268602768,0.03794129,202.82,202.81,13.33275365]
[1739268603170,4.5931,202.95,202.81,8.40285365]
[1739268603171,8.40285365,202.92,202.81,8.40285365]
[1739268603470,8.40285365,202.92,202.85,8.40285365]
[1739268603670,13.33035365,202.92,202.86,4.9285]
[1739268603870,13.33035365,202.92,202.85,8.40285365]
[1739268604272,0.0364829,202.91,202.86,0.03354155]
[1739268605368,4.928,202.89,202.86,0.03354155]
[1739268605572,0.0364829,202.91,202.86,0.03354155]
[1739268607171,4.9283,202.88,202.86,0.03354155]
[1739268608571,4.9285,202.87,202.86,0.03354155]
[1739268609370,0.0364829,202.91,202.86,0.03354155]
[1739268609975,0.0364829,202.91,202.87,4.9285]
[1739268610471,0.0364829,202.91,202.86,4.96224155]
[1739268611272,0.0364829,202.91,202.87,4.9285]
[1739268611576,0.0364829,202.91,202.86,0.03354155]
[1739268612578,4.9285,202.87,202.86,0.03354155]
[1739268623084,4.9285,202.87,202.86,4.155e-05]
[1739268624386,13.12100478,202.89,202.73,13.12100478]
[1739268624781,4.9296,202.83,202.73,13.12100478]
[1739268625086,13.12100478,202.89,202.73,13.12100478]
[1739268625286,0.0315708,202.8,202.76,0.03528576]
[1739268625485,13.12100478,202.89,202.73,13.12100478]
[1739268625688,0.0353296,202.8,202.78,8.40029207]
[1739268625888,4.9297,202.83,202.78,8.40029207]
[1739268626186,0.0316165,202.81,202.78,8.40029207]
[1739268627091,0.0316165,202.81,202.8,13.33049207]
[1739268627388,0.0316165,202.81,202.77,0.03594221]
[1739268627579,8.43190857,202.81,202.77,0.03594221]
[1739268627780,4.9304,202.8,202.77,0.03594221]
[1739268628194,0.0316165,202.81,202.77,0.03594221]
[1739268628388,4.9616165,202.81,202.77,0.03594221]
[1739268628787,4.9303,202.8,202.77,0.03594221]
[1739268630289,8.43190857,202.81,202.77,0.03594221]
[1739268630489,4.9305,202.79,202.77,0.03594221]
[1739268631191,4.9302,202.8,202.77,0.03594221]
[1739268632590,0.0316165,202.81,202.77,0.03594221]
[1739268633194,0.0316165,202.81,202.78,4.9306]
[1739268633591,0.0316165,202.81,202.78,13.33089207]
[1739268634287,0.0316165,202.81,202.78,8.40029207]
[1739268635491,0.0316165,202.81,202.8,8.40029207]
[1739268639392,0.0316165,202.81,202.8,13.33049207]
[1739268640896,11.45329207,202.94,202.8,8.40029207]
[1739268641194,8.40029207,202.9,202.83,8.40029207]
[1739268641392,4.9283,202.88,202.83,8.40029207]
[1739268641898,4.9283,202.88,202.83,13.32969207]
[1739268642093,0.0315386,202.88,202.85,8.40029207]
[1739268643593,0.0315386,202.88,202.87,8.40029207]
[1739268644195,0.0315386,202.88,202.87,13.32879207]
[1739268644893,0.0315386,202.88,202.87,4.9285]
[1739268645098,0.0315386,202.88,202.85,13.32899207]
[1739268645697,0.0315386,202.88,202.86,4.9287]
[1739268646790,0.0315386,202.88,202.87,4.9285]
[1739268646990,0.0315386,202.88,202.87,13.32879207]
[1739268651694,0.0315386,202.88,202.86,4.9287]
[1739268652301,0.0315386,202.88,202.87,8.40029207]
[1739268653596,0.0315386,202.88,202.87,13.32879207]
[1739268659611,0.0315386,202.88,202.85,4.9288]
[1739268659909,0.0315386,202.88,202.85,13.32909207]
[1739268660101,0.0315386,202.88,202.85,8.40029207]
[1739268660306,0.0315386,202.88,202.87,8.40029207]
[1739268660707,0.0315386,202.88,202.87,13.32879207]
[1739268663012,0.0315386,202.88,202.87,4.9285]
[1739268663315,0.0315386,202.88,202.85,13.32899207]
[1739268663515,0.0315386,202.88,202.85,8.40029207]
[1739268663714,0.0315386,202.88,202.86,4.9285]
[1739268664214,0.0315386,202.88,202.85,8.40029207]
[1739268664405,0.0315386,202.88,202.87,4.9285]
[1739268664714,0.0315386,202.88,202.87,13.32879207]
[1739268665514,0.0315386,202.88,202.87,8.40029207]
[1739268665813,0.0315386,202.88,202.85,8.40029207]
[1739268666012,0.0315386,202.88,202.87,8.40029207]
[1739268666512,0.0315386,202.88,202.87,13.32879207]
[1739268667210,8.40029207,202.98,202.87,8.40029207]
[1739268667513,8.40029207,203.0,202.93,8.40029207]
[1739268667715,4.9256,202.99,202.93,8.40029207]
[1739268668107,8.40029207,203.0,202.93,8.40029207]
[1739268668416,0.03136176,202.99,202.96,4.9261]
[1739268668812,0.03136176,202.99,202.94,0.03269757]
[1739268670322,4.95696176,202.99,202.94,0.03269757]
[1739268670625,0.03136176,202.99,202.94,0.03269757]
[1739268670819,4.9273,202.92,202.8,50.35674941]
[1739268671121,8.40029207,202.87,202.8,50.35674941]
[1739268671921,8.432944,202.87,202.84,20.40641153]
[1739268672221,8.432944,202.87,202.85,6.80213717]
[1739268673520,0.03265193,202.87,202.85,6.80213717]
[1739268674725,0.03265193,202.87,202.82,0.03734462]
[1739268677128,0.03265193,202.87,202.82,4.96694462]
[1739268677528,0.03265193,202.87,202.82,0.03734462]
[1739268678827,0.03265193,202.87,202.82,4.96704462]
[1739268681125,0.03265193,202.87,202.83,4.9294]
[1739268681629,0.03265193,202.87,202.82,0.03734462]
[1739268681830,0.03265193,202.87,202.82,4.96704462]
[1739268682230,0.03265193,202.87,202.82,0.03734462]
[1739268682532,0.03265193,202.87,202.83,4.9294]
[1739268682725,0.03265193,202.87,202.82,0.03734462]
[1739268682927,0.03265193,202.87,202.83,4.9294]
[1739268686033,0.03265193,202.87,202.82,0.03734462]
[1739268686234,0.03265193,202.87,202.84,4.9291]
[1739268689433,0.03265193,202.87,202.83,4.9294]
[1739268691740,0.03265193,202.87,202.82,0.03734462]
[1739268692038,0.03265193,202.87,202.84,4.9291]
[1739268694340,0.03265193,202.87,202.83,8.40029207]
[1739268695640,0.03265193,202.87,202.86,4.9287]
[1739268698042,0.03265193,202.87,202.83,8.40029207]
[1739268698241,0.03265193,202.87,202.85,4.9289]
[1739268700341,0.03265193,202.87,202.83,8.40029207]
[1739268701747,0.03265193,202.87,202.83,13.32969207]
[1739268704048,0.03265193,202.87,202.83,8.40029207]
[1739268704951,4.96125193,202.87,202.83,8.40029207]
[1739268705751,0.03265193,202.87,202.83,8.40029207]
[1739268706052,8.432944,202.87,202.82,0.03734462]
[1739268706351,8.432944,202.87,202.83,4.9294]
[1739268706551,0.03265193,202.87,202.83,4.9294]
[1739268706751,0.03265193,202.87,202.83,8.40029207]
[1739268707753,0.03265193,202.87,202.85,4.9287]
[1739268708754,0.03265193,202.87,202.84,4.9292]
[1739268709151,8.432944,202.87,202.82,0.03734462]
[1739268709749,8.40029207,202.85,202.82,0.03734462]
[1739268710855,13.32929207,202.85,202.82,0.03734462]
[1739268711658,8.40029207,202.85,202.82,0.03734462]
[1739268711859,8.432944,202.87,202.82,0.03734462]
[1739268712453,0.03265193,202.87,202.82,0.03734462]
[1739268713757,0.03265193,202.87,202.83,4.9292]
[1739268713955,0.03265193,202.87,202.83,8.40029207]
[1739268714460,0.03265193,202.87,202.84,4.929]
[1739268717160,0.03265193,202.87,202.83,8.40029207]
[1739268717361,0.03265193,202.87,202.85,4.9288]
[1739268717559,0.03265193,202.87,202.85,8.40029207]
[1739268718855,0.03265193,202.87,202.86,4.9287]
[1739268724063,0.03265193,202.87,202.85,8.40029207]
[1739268725160,0.03265193,202.87,202.83,8.40029207]
[1739268725371,8.432944,202.87,202.82,0.03734462]
[1739268729167,8.40029207,202.85,202.82,0.03734462]
[1739268729366,0.03265193,202.87,202.82,0.03734462]
[1739268729367,8.40029207,202.83,202.82,0.03734462]
[1739268729668,8.40029207,202.85,202.82,0.03734462]
[1739268730470,4.9292,202.84,202.82,0.03734462]
[1739268730870,8.40029207,202.85,202.82,0.03734462]
[1739268731572,13.32929207,202.85,202.82,0.03734462]
[1739268732970,8.40029207,202.83,202.82,0.03734462]
[1739268733664,13.32969207,202.83,202.82,0.03734462]
[1739268735774,4.9299,202.82,202.77,4.9309]
[1739268736072,8.40029207,202.8,202.77,4.9309]
[1739268736771,8.40029207,202.8,202.76,4.9311]
[1739268736973,8.40029207,202.8,202.76,4.96491145]
[1739268737876,8.40029207,202.8,202.76,0.03381145]
[1739268740276,8.40029207,202.78,202.76,0.03381145]
[1739268741571,8.40029207,202.8,202.76,4.96491145]
[1739268741769,8.40029207,202.8,202.76,0.03381145]
[1739268742378,0.03528569,202.81,202.76,0.03381145]
[1739268743174,8.40029207,202.8,202.76,0.03381145]
[1739268744170,8.40029207,202.78,202.76,0.03381145]
[1739268747980,8.40029207,202.8,202.76,0.03381145]
[1739268748682,8.40029207,202.8,202.76,4.96471145]
[1739268750182,8.40029207,202.8,202.77,4.9308]
[1739268752582,8.40029207,202.8,202.76,4.96491145]
[1739268752786,8.40029207,202.8,202.76,0.03381145]
[1739268753183,4.9305,202.79,202.76,0.03381145]
[1739268753775,4.9304,202.79,202.76,0.03381145]
[1739268753981,8.40029207,202.8,202.76,0.03381145]
[1739268754884,13.33049207,202.8,202.76,0.03381145]
[1739268756783,13.33099207,202.78,202.76,0.03381145]
[1739268756982,8.40029207,202.78,202.76,0.03381145]
[1739268757782,4.9309,202.77,202.76,0.03381145]
[1739268758084,8.40029207,202.78,202.76,0.03381145]
[1739268759480,4.9309,202.77,202.76,0.03381145]
[1739268761080,8.40029207,202.78,202.7,51.27834814]
[1739268761280,8.40029207,202.72,202.7,51.27834814]
[1739268761686,8.40029207,202.72,202.7,56.21094814]
[1739268762586,0.03446035,202.73,202.7,56.21094814]
[1739268764990,0.03446035,202.73,202.71,4.9322]
[1739268766285,0.03446035,202.73,202.7,51.27834814]
[1739268766489,0.03446035,202.73,202.7,56.21094814]
[1739268770596,8.40029207,202.72,202.7,51.27834814]
[1739268771392,13.33249207,202.72,202.7,51.27834814]
[1739268771701,8.40029207,202.72,202.69,0.03783253]
[1739268771999,0.03446035,202.73,202.69,0.03783253]
[1739268772200,0.03446035,202.73,202.7,4.9326]
[1739268776303,0.03446035,202.73,202.69,0.03783253]
[1739268776707,8.40029207,202.72,202.69,0.03783253]
[1739268776907,8.40029207,202.72,202.69,4.97063253]
[1739268777101,0.03446035,202.73,202.69,4.97063253]
[1739268778607,0.03446035,202.73,202.7,4.9325]
[1739268778805,8.40029207,202.72,202.69,0.03783253]
[1739268778998,8.40029207,202.7,202.69,0.03783253]
[1739268779808,8.40029207,202.72,202.69,0.03783253]
[1739268780507,13.33249207,202.72,202.69,0.03783253]
[1739268781404,0.03446035,202.73,202.7,4.9326]
[1739268781909,0.03446035,202.73,202.69,0.03783253]
[1739268782402,0.03446035,202.73,202.69,4.97063253]
[1739268782606,0.03446035,202.73,202.69,0.03783253]
[1739268783812,4.96656035,202.73,202.69,0.03783253]
[1739268786416,4.96656035,202.73,202.59,54.42224906]
[1739268786417,4.9346,202.62,202.59,54.42224906]
[1739268786619,8.40029207,202.62,202.56,136.05562266]
[1739268786909,8.40029207,202.59,202.56,136.05562266]
[1739268787215,13.33609207,202.57,202.56,136.05562266]
[1739268787415,13.33609207,202.57,202.56,128.59272266]
[1739268787608,8.40029207,202.57,202.56,128.59272266]
[1739268788215,8.40029207,202.57,202.55,128.59272266]
[1739268790718,8.43742571,202.59,202.54,0.03574799]
[1739268791513,8.43742571,202.59,202.55,4.9362]
[1739268792413,4.9368,202.53,202.42,4.9393]
[1739268792620,8.40029207,202.45,202.37,8.40029207]
[1739268792819,8.40029207,202.43,202.37,8.40029207]
[1739268793014,8.40029207,202.43,202.41,4.9396]
[1739268793321,8.40029207,202.43,202.37,8.40029207]
[1739268793616,0.03383445,202.42,202.38,0.03602333]
[1739268794421,0.03383445,202.42,202.4,4.9399]
[1739268795122,8.40029207,202.45,202.38,0.03602333]
[1739268795321,8.40029207,202.45,202.39,8.40029207]
[1739268795721,13.17497637,202.49,202.36,17.75167637]
[1739268796325,0.03666304,202.45,202.4,0.03756525]
[1739268796515,0.03666304,202.45,202.43,4.9392]
[1739268796717,13.17497637,202.52,202.4,0.03756525]
[1739268796919,13.17497637,202.52,202.43,4.939]
[1739268797125,13.17497637,202.52,202.39,13.17497637]
[1739268797518,13.17497637,202.55,202.47,4.9382]
[1739268797718,0.03344275,202.53,202.49,0.03217139]
[1739268798225,0.03344275,202.53,202.49,4.96967139]
[1739268798422,0.03344275,202.53,202.49,0.03217139]
[1739268799124,0.03344275,202.53,202.5,4.9375]
[1739268799522,0.03344275,202.53,202.49,0.03217139]
[1739268800119,13.17497637,202.58,202.53,4.9367]
[1739268801223,13.17497637,202.58,202.53,4.97435094]
[1739268801431,13.20667703,202.58,202.53,4.97435094]
[1739268804029,13.20667703,202.58,202.53,0.03765094]
[1739268804333,0.03170066,202.58,202.53,0.03765094]
[1739268804727,4.96720066,202.58,202.54,4.9364]
[1739268805031,4.96720066,202.58,202.53,0.03765094]
[1739268806131,4.9363,202.55,202.53,0.03765094]
[1739268806433,13.17497637,202.55,202.53,0.03765094]
[1739268806831,4.9377,202.49,202.48,1.4798]
[1739268807729,13.17497637,202.51,202.48,1.4798]
[1739268807932,13.21053874,202.51,202.46,0.03135652]
[1739268808929,4.938,202.48,202.46,0.03135652]
[1739268809427,13.21053874,202.51,202.46,0.03135652]
[1739268810129,4.9379,202.49,202.46,0.03135652]
[1739268811232,13.21053874,202.51,202.46,0.03135652]
[1739268811428,0.03556237,202.51,202.46,0.03135652]
[1739268811832,0.03556237,202.51,202.5,4.9375]
[1739268812733,4.936,202.56,202.46,0.03135652]
[1739268813034,4.9363,202.55,202.51,4.9372]
[1739268814134,0.03572347,202.55,202.53,4.9367]
[1739268814535,0.03572347,202.55,202.51,4.97238621]
[1739268815032,0.03572347,202.55,202.51,0.03518621]
[1739268815731,0.03572347,202.55,202.52,4.937]
[1739268817137,0.03572347,202.55,202.53,4.9367]
[1739268817637,0.03572347,202.55,202.51,0.03518621]
[1739268819841,0.03572347,202.55,202.52,4.9369]
[1739268820044,0.03572347,202.55,202.51,0.03518621]
[1739268820741,0.03572347,202.55,202.51,4.97238621]
[1739268821239,0.03572347,202.55,202.51,0.03518621]
[1739268821444,0.03572347,202.55,202.53,4.9367]
[1739268821741,0.03572347,202.55,202.52,1.4801]
[1739268821941,0.03572347,202.55,202.51,0.03518621]
[1739268822540,4.97202347,202.55,202.51,0.03518621]
[1739268823146,0.03572347,202.55,202.51,4.97218621]
[1739268823345,0.03572347,202.55,202.51,0.03518621]
[1739268824549,0.03572347,202.55,202.51,4.97218621]
[1739268824946,0.03572347,202.55,202.52,4.9369]
[1739268825345,0.03572347,202.55,202.51,0.03518621]
[1739268825546,0.03572347,202.55,202.53,4.9365]
[1739268825847,0.03572347,202.55,202.51,0.03518621]
[1739268826842,0.03572347,202.55,202.54,4.9365]
[1739268832754,26.38567621,202.55,202.32,194.0]
[1739268832950,13.17497637,202.4,202.31,3.1164]
[1739268833551,4.9409,202.36,202.31,3.1164]
[1739268833756,13.17497637,202.4,202.31,3.1164]
[1739268833956,0.03204603,202.36,202.31,3.15412356]
[1739268834854,13.17497637,202.32,202.23,135.7079004]
[1739268835049,13.17497637,202.29,202.23,135.7079004]
[1739268835249,13.17497637,202.29,202.13,17.74457637]
[1739268835658,21.12830283,202.28,202.13,4.5696]
[1739268836048,0.03451934,202.23,202.18,0.03583258]
[1739268838053,21.12830283,202.22,202.18,0.03583258]
[1739268840653,26.07270283,202.22,202.18,0.03583258]
[1739268840847,21.12830283,202.22,202.18,0.03583258]
[1739268841053,21.12830283,202.19,202.13,3.0737]
[1739268842359,0.03564599,202.18,202.14,0.031475]
[1739268847260,4.98094599,202.18,202.14,0.031475]
[1739268850160,4.946,202.15,202.14,0.031475]
[1739268850464,21.12830283,202.15,202.07,1.5778]
[1739268850864,4.9463,202.14,202.1,4.9472]
[1739268851064,21.12830283,202.15,202.04,1.4657]
[1739268851565,4.9471,202.11,202.07,0.03234547]
[1739268852164,4.97895572,202.12,202.07,4.98034547]
[1739268852462,0.03215572,202.12,202.07,0.03234547]
[1739268853567,0.03215572,202.12,202.09,4.9475]
[1739268855964,0.03215572,202.12,202.04,1.4657]
[1739268856571,0.03215572,202.12,202.09,4.9473]
[1739268857070,0.03215572,202.12,202.04,1.4657]
[1739268857671,0.03215572,202.12,202.08,4.9476]
[1739268858069,4.9471,202.11,202.04,1.4657]
[1739268858272,4.9471,202.11,202.07,4.9479]
[1739268858572,0.03215572,202.12,202.07,4.9479]
[1739268858772,4.97895572,202.12,202.08,4.9477]
[1739268859272,4.97895572,202.12,202.1,4.947]
[1739268859273,0.03215572,202.12,202.1,4.947]
[1739268859473,0.03215572,202.12,202.06,0.03570145]
[1739268860773,4.97915572,202.12,202.08,4.9475]
[1739268861072,4.97915572,202.12,202.04,1.4657]
[1739268861673,4.97915572,202.12,202.08,4.9476]
[1739268861875,0.03215572,202.12,202.04,1.4657]
[1739268862274,0.03215572,202.12,202.06,0.02310297]
[1739268863174,0.03215572,202.12,202.1,4.9471]
[1739268863375,0.03215572,202.12,202.06,0.02310297]
[1739268863577,0.03215572,202.12,202.08,4.9477]
[1739268864175,4.97905572,202.12,202.08,4.9477]
[1739268864475,0.03215572,202.12,202.08,4.9477]
[1739268864672,0.03215572,202.12,202.08,4.92445488]
[1739268864873,4.9471,202.11,202.08,4.92445488]
[1739268865575,0.03215572,202.12,202.08,4.92445488]
[1739268865877,4.97915572,202.12,202.04,1.4657]
[1739268866476,4.97915572,202.12,202.06,4.9481]
[1739268866677,4.97915572,202.12,202.04,1.4657]
[1739268867876,4.97915572,202.12,202.08,4.9477]
[1739268868177,0.03215572,202.12,202.08,4.9477]
[1739268868372,4.9471,202.11,202.04,1.4657]
[1739268868878,0.03215572,202.12,202.04,1.4657]
[1739268869079,4.97895572,202.12,202.08,4.9475]
[1739268869278,4.97895572,202.12,202.04,1.4657]
[1739268869579,80.4797242,202.08,202.04,1.4657]
[1739268870778,80.4797242,202.08,202.07,4.948]
[1739268871182,80.4797242,202.09,202.07,4.948]
[1739268872983,80.4797242,202.09,202.04,1.4657]
[1739268873183,80.4797242,202.09,202.08,4.9477]
[1739268873883,80.4797242,202.09,202.07,4.9479]
[1739268874085,80.4797242,202.09,202.04,1.4657]
[1739268874280,100.16184433,202.08,202.04,1.4657]
[1739268875787,100.16184433,202.08,202.07,4.948]
[1739268876287,92.88324433,202.08,202.07,4.948]
[1739268878090,80.4797242,202.11,202.05,13.22249269]
[1739268879692,80.4797242,202.11,202.1,4.9472]
[1739268882594,3295.053,202.11,202.05,13.22249269]
[1739268884197,3295.053,202.11,202.1,4.9472]
[1739268885695,3295.053,202.11,202.1,13.40581017]
[1739268897510,3195.3802094,202.11,202.1,13.40581017]
[1739268900013,3124.6991094,202.11,202.1,13.40581017]
[1739268900204,3027.4522188,202.11,202.1,13.40581017]
[1739268903214,2930.2053282,202.11,202.1,13.40581017]